bitfinex/quotes_ETHUSD_20250511
["timestamp","ask_amount","ask_price","bid_price","bid_amount"]
[1746994323560,0.05,2503.4,2503.3,18.59262751]
[1746994323707,0.05,2503.4,2503.3,14.4904]
[1746994324407,0.05,2503.4,2503.3,17.344656]
[1746994325302,3.99334318,2504.2,2503.3,17.344656]
[1746994325303,0.05,2504.4,2504.2,12.848675]
[1746994325522,0.05,2504.4,2504.3,13.052563]
[1746994325780,4.78168356,2504.3,2503.9,8.0]
[1746994325905,0.7885,2504.3,2504.0,1.0866]
[1746994326104,3.99338111,2504.2,2504.0,1.0866]
[1746994326333,3.99345074,2504.1,2503.9,8.0]
[1746994326931,3.99361022,2504.0,2503.9,8.0]
[1746994327242,3.99333182,2504.2,2504.1,8.0]
[1746994327416,3.99333182,2504.2,2504.0,3.99361]
[1746994327417,3.99359808,2504.1,2503.9,8.0]
[1746994327617,4.78171314,2504.3,2503.9,8.2866]
[1746994327835,4.78166367,2504.3,2503.9,8.2866]
[1746994328237,4.78167727,2504.3,2503.9,8.2866]
[1746994329603,0.7885,2504.3,2503.9,8.2866]
[1746994329843,3.99331908,2504.2,2503.9,8.2866]
[1746994330658,0.7885,2504.3,2504.0,14.73526]
[1746994330841,4.78165626,2504.3,2503.9,8.2866]
[1746994331344,3.99338025,2504.2,2503.9,8.2866]
[1746994332081,3.99365359,2504.0,2503.9,8.0]
[1746994332249,0.7885,2504.3,2503.9,8.0]
[1746994332250,4.78169214,2504.3,2503.9,8.0]
[1746994332549,3.99361022,2504.0,2503.9,8.0]
[1746994333363,3.99348349,2504.1,2503.9,8.0]
[1746994334134,3.99361022,2504.0,2503.9,8.0]
[1746994335268,3.99343707,2504.2,2503.9,8.0]
[1746994335269,3.99352611,2504.1,2503.9,8.0]
[1746994335629,3.99361022,2504.0,2503.9,8.0]
[1746994336248,4.76861022,2504.0,2503.9,8.0]
[1746994336767,4.76861022,2504.0,2503.8,2.866]
[1746994336768,3.99376971,2503.9,2503.8,2.866]
[1746994337090,3.99376971,2503.9,2503.8,10.866]
[1746994342676,4.76869459,2504.0,2503.9,8.0]
[1746994343039,3.99376971,2503.9,2503.8,2.866]
[1746994346640,0.8331,2504.3,2503.8,3.1526]
[1746994346840,0.8331,2504.3,2503.9,0.03993635]
[1746994346841,3.99332621,2504.2,2503.9,0.03993635]
[1746994347042,3.99329127,2504.2,2503.9,8.0]
[1746994347685,3.99346369,2504.1,2503.9,8.0]
[1746994348399,4.04306598,2504.4,2504.3,4.826563]
[1746994348602,4.04306598,2504.4,2504.3,8.0]
[1746994349315,0.05,2504.4,2504.3,8.0]
[1746994349613,0.05,2504.4,2504.3,27.04139616]
[1746994349809,0.05,2504.4,2504.3,30.95071016]
[1746994350097,0.05,2504.4,2504.3,16.52621516]
[1746994351807,0.05,2504.4,2504.3,9.63089316]
[1746994352007,0.05,2504.4,2504.3,49.37588916]
[1746994352303,0.05,2504.4,2504.3,26.35464816]
[1746994352505,0.05,2504.4,2504.3,25.34662816]
[1746994352803,0.05,2504.4,2504.3,23.71862816]
[1746994353277,0.05,2504.4,2504.3,9.63089316]
[1746994354063,0.05,2504.4,2504.3,43.91785516]
[1746994354271,0.05,2504.4,2504.3,40.87059516]
[1746994354469,0.05,2504.4,2504.3,20.48311416]
[1746994354684,0.05,2504.4,2504.3,9.63089316]
[1746994354886,0.05,2504.4,2504.3,33.24611316]
[1746994355086,0.05,2504.4,2504.3,33.79611316]
[1746994355302,0.05,2504.4,2504.3,35.78437189]
[1746994355687,0.05,2504.4,2504.3,33.79611316]
[1746994355873,0.05,2504.4,2504.3,50.37294316]
[1746994356926,0.05,2504.4,2504.3,51.44858516]
[1746994358888,0.05,2504.4,2504.3,13.03489316]
[1746994359091,0.05,2504.4,2504.3,53.22694316]
[1746994360427,0.05,2504.4,2504.3,50.37294316]
[1746994360633,0.05,2504.4,2504.3,53.22594316]
[1746994363458,0.05,2504.4,2504.3,36.99630516]
[1746994363649,0.05,2504.4,2504.3,37.48419916]
[1746994364233,0.05,2504.4,2504.3,15.89089316]
[1746994364709,0.05,2504.4,2504.3,56.08294316]
[1746994367990,0.05,2504.4,2504.3,41.13353916]
[1746994368144,0.05,2504.4,2504.3,40.63013916]
[1746994369475,0.05,2504.4,2504.3,56.55390049]
[1746994370077,0.05,2504.4,2504.3,56.08294316]
[1746994373073,0.7672,2505.3,2504.4,0.05]
[1746994373303,0.7672,2505.3,2504.6,8.55]
[1746994373459,0.7672,2505.3,2504.8,8.0]
[1746994373662,0.7672,2505.3,2505.0,8.0]
[1746994373866,0.7672,2505.3,2505.2,8.0]
[1746994374201,0.7672,2505.3,2505.2,8.038215]
[1746994374403,0.7672,2505.3,2505.2,3.8777035]
[1746994374590,4.75873793,2505.3,2505.0,8.0]
[1746994375198,0.7672,2505.3,2505.0,8.0]
[1746994375700,0.7672,2505.3,2505.2,8.0]
[1746994375895,0.7672,2505.3,2505.2,7.000488]
[1746994376105,0.7672,2505.3,2505.0,8.0]
[1746994376106,0.7672,2505.3,2505.1,7.000488]
[1746994376310,0.7672,2505.3,2505.2,1.5000488]
[1746994376511,0.05,2505.4,2505.2,1.5000488]
[1746994376810,0.05,2505.4,2505.3,15.978975]
[1746994377009,0.05,2505.4,2505.3,11.755241]
[1746994377417,4.04137862,2505.4,2505.3,8.0]
[1746994377601,0.05,2505.4,2505.3,8.0]
[1746994378221,4.04137862,2505.4,2505.3,8.0]
[1746994378571,0.8179,2505.0,2504.3,0.80399316]
[1746994378771,0.8179,2505.0,2504.5,8.0]
[1746994379181,4.80992294,2505.0,2504.5,8.0]
[1746994380887,0.8179,2505.0,2504.5,8.0]
[1746994382279,4.80992321,2505.0,2504.5,8.0]
[1746994384486,3.99217533,2504.9,2504.5,8.0]
[1746994384687,3.99217533,2504.9,2504.7,8.0]
[1746994385203,3.99233471,2504.8,2504.7,8.0]
[1746994386058,3.99268484,2504.6,2504.5,8.0]
[1746994386225,3.99257122,2504.7,2504.5,8.0]
[1746994387328,0.8179,2505.0,2504.5,10.4]
[1746994387496,0.8179,2505.0,2504.7,8.0]
[1746994387696,0.8179,2505.0,2504.9,8.0]
[1746994388012,0.8179,2505.0,2504.9,29.271334]
[1746994388207,0.8283,2505.4,2505.0,8.0]
[1746994388406,0.8283,2505.4,2504.9,33.132243]
[1746994388407,0.8283,2505.4,2505.2,8.0]
[1746994388608,0.8283,2505.4,2505.3,13.86324]
[1746994388781,0.8283,2505.4,2505.3,20.505108]
[1746994388990,0.8283,2505.4,2505.3,18.160468]
[1746994389185,0.8283,2505.4,2505.3,13.86558]
[1746994389812,0.8283,2505.4,2505.3,12.920484]
[1746994390184,0.05,2505.4,2505.3,12.920484]
[1746994391014,4.04137862,2505.4,2505.3,12.920484]
[1746994391199,4.04137862,2505.4,2505.3,8.0]
[1746994391609,4.04137862,2505.4,2505.3,10.652998]
[1746994392400,0.05,2505.4,2505.3,8.0]
[1746994392608,0.05,2505.4,2505.3,19.7880678]
[1746994392806,0.05,2505.4,2505.3,34.9568608]
[1746994393020,0.05,2505.4,2505.3,48.1542188]
[1746994393202,0.05,2505.4,2505.3,48.9667858]
[1746994393536,0.05,2505.4,2505.3,37.6451488]
[1746994393737,0.05,2505.4,2505.3,35.6133548]
[1746994393935,0.05,2505.4,2505.3,10.1634998]
[1746994394454,0.05,2505.4,2505.3,40.8417178]
[1746994394613,0.05,2505.4,2505.3,46.4006938]
[1746994394821,0.05,2505.4,2505.3,45.5846318]
[1746994395707,0.05,2505.4,2505.3,14.4484688]
[1746994395939,0.05,2505.4,2505.3,12.2002998]
[1746994396244,0.05,2505.4,2505.3,10.85]
[1746994397037,4.04137862,2505.4,2505.3,10.85]
[1746994397255,4.04139168,2505.4,2504.6,3.6181]
[1746994397402,0.7669,2505.3,2504.7,0.03991982]
[1746994397602,0.05,2505.4,2504.8,29.17064]
[1746994397831,0.05,2505.4,2505.0,8.0]
[1746994398032,0.05,2505.4,2505.2,8.0]
[1746994398340,0.05,2505.4,2504.8,0.7681]
[1746994398341,0.05,2505.4,2505.3,4.090109]
[1746994398538,0.05,2505.4,2505.2,8.0]
[1746994398738,0.05,2505.4,2505.3,19.871197]
[1746994398941,0.05,2505.4,2505.3,8.8]
[1746994399114,0.05,2505.4,2505.3,25.744744]
[1746994399315,0.05,2505.4,2505.3,25.251487]
[1746994399708,0.05,2505.4,2505.3,17.787827]
[1746994400336,0.05,2505.4,2505.3,11.65]
[1746994402911,0.05,2505.4,2505.3,23.299437]
[1746994403442,0.05,2505.4,2505.3,16.702537]
[1746994407126,0.05,2505.4,2505.3,13.852537]
[1746994407370,0.05,2505.4,2505.3,7.155199]
[1746994407659,0.05,2505.4,2504.7,0.40553191]
[1746994407660,4.04137862,2505.4,2504.8,27.959557]
[1746994407832,4.04137862,2505.4,2504.9,25.772479]
[1746994408156,0.05,2505.4,2504.9,8.0]
[1746994408338,4.0414239,2505.4,2505.1,8.0]
[1746994408542,3.99156024,2505.3,2505.0,1.084]
[1746994408755,3.99156024,2505.3,2505.1,4.191194]
[1746994409460,3.99156024,2505.3,2505.0,1.084]
[1746994410357,4.76450553,2505.2,2505.0,1.084]
[1746994410664,4.76450553,2505.2,2505.1,8.0]
[1746994410857,0.7728,2505.2,2504.7,0.44545091]
[1746994411058,0.7728,2505.2,2504.9,8.0]
[1746994411355,0.7728,2505.2,2504.7,0.44545091]
[1746994411356,0.8228,2505.4,2505.1,8.0]
[1746994411550,0.8228,2505.4,2505.1,1.37111385]
[1746994411746,0.05,2505.4,2505.3,8.0]
[1746994411950,0.05,2505.4,2505.3,39.603896]
[1746994412156,0.05,2505.4,2505.3,36.781803]
[1746994413057,0.05,2505.4,2505.3,30.199803]
[1746994413261,0.05,2505.4,2505.3,33.5814933]
[1746994413429,0.05,2505.4,2505.3,31.7790703]
[1746994414027,0.05,2505.4,2505.3,24.4852083]
[1746994414363,0.05,2505.4,2505.3,23.4029673]
[1746994414663,0.05,2505.4,2505.3,33.6917723]
[1746994414971,0.05,2505.4,2505.3,31.7355143]
[1746994415465,0.05,2505.4,2505.3,11.3816903]
[1746994415763,0.05,2505.4,2505.3,8.0]
[1746994415959,0.05,2505.4,2505.3,41.403155]
[1746994416164,0.05,2505.4,2505.3,29.477843]
[1746994418946,0.05,2505.4,2505.3,19.16029]
[1746994420569,0.05,2505.4,2505.3,8.766]
[1746994420750,0.05,2505.4,2505.3,50.1585572]
[1746994420945,0.05,2505.4,2505.3,50.11865]
[1746994421550,0.05,2505.4,2505.3,43.657166]
[1746994422674,3.9904998,2506.0,2505.3,43.657166]
[1746994422836,3.9904998,2506.0,2505.3,9.9266]
[1746994423034,3.9904998,2506.0,2505.4,1.27666]
[1746994424096,4.77176079,2506.2,2505.4,1.27666]
[1746994424097,3.99063342,2505.9,2505.4,1.27666]
[1746994424266,3.99050114,2506.0,2505.6,8.0]
[1746994424474,3.99050114,2506.0,2505.4,1.27666]
[1746994425005,3.99034065,2506.1,2505.4,1.27666]
[1746994425168,3.99034065,2506.1,2505.5,1.004266]
[1746994425551,3.990434,2506.0,2505.5,1.004266]
[1746994425771,3.990434,2506.0,2505.3,8.766]
[1746994426469,0.05,2506.4,2506.1,8.0]
[1746994426670,0.05,2506.4,2506.3,8.0]
[1746994427425,4.03978614,2506.4,2506.3,27.749936]
[1746994427568,3.99010454,2506.2,2506.1,8.0]
[1746994427901,3.99074147,2505.8,2505.7,2.84]
[1746994428194,0.8091,2505.9,2505.8,8.0]
[1746994428357,4.79976657,2505.9,2505.7,2.84]
[1746994428554,4.79976657,2505.9,2505.7,3.124]
[1746994432703,3.99074147,2505.8,2505.7,3.124]
[1746994432912,3.99098758,2505.7,2505.5,2.829]
[1746994433922,3.9907686,2505.8,2505.5,2.829]
[1746994435198,3.99074147,2505.8,2505.5,2.829]
[1746994436478,3.99074147,2505.8,2505.4,8.0]
[1746994436479,3.9912438,2505.5,2505.3,2.829]
[1746994436679,0.795,2505.7,2505.3,2.829]
[1746994436988,3.99109077,2505.6,2505.4,8.0]
[1746994438222,0.795,2505.7,2505.4,9.16235]
[1746994438388,0.795,2505.9,2505.6,8.0]
[1746994438716,4.78560229,2505.9,2505.4,9.16235]
[1746994438926,3.99060229,2505.9,2505.4,9.20225942]
[1746994439522,3.99060229,2505.9,2505.4,9.16235]
[1746994439721,3.99060229,2505.9,2505.5,1.199135]
[1746994440928,3.99060229,2505.9,2505.2,2.829]
[1746994440929,0.795,2505.9,2505.2,2.829]
[1746994441091,3.99130513,2505.5,2505.3,8.0]
[1746994441288,3.99137862,2505.4,2505.3,8.0]
[1746994441622,3.99137862,2505.4,2505.2,2.829]
[1746994441917,3.99137862,2505.4,2505.3,8.0]
[1746994442132,3.9918327,2505.2,2504.9,14.361]
[1746994442290,3.99193513,2505.1,2504.9,15.91710319]
[1746994442491,3.99177847,2505.2,2504.9,15.91710319]
[1746994442692,3.99193324,2505.1,2504.9,15.91710319]
[1746994443112,3.99193324,2505.1,2505.0,8.0]
[1746994443309,3.99193324,2505.1,2504.9,15.91710319]
[1746994443834,3.991753,2505.2,2505.0,8.0]
[1746994444130,3.991753,2505.2,2505.0,10.67461032]
[1746994444625,4.78865661,2505.1,2504.9,8.0]
[1746994444829,3.99201596,2505.0,2504.9,8.0]
[1746994446608,3.99217533,2504.9,2504.8,2.829]
[1746994446798,3.99217533,2504.9,2504.8,10.829]
[1746994448716,0.7968,2505.1,2504.9,8.0]
[1746994448919,3.99201596,2505.0,2504.8,2.829]
[1746994449235,0.8059,2505.3,2504.8,3.1119]
[1746994449434,3.99196061,2505.1,2504.8,3.1119]
[1746994450238,3.99207111,2505.0,2504.8,3.1119]
[1746994450455,3.99217533,2504.9,2504.8,3.1119]
[1746994450616,3.99217533,2504.9,2504.8,2.829]
[1746994451020,4.79807533,2504.9,2504.8,10.829]
[1746994454421,3.99217533,2504.9,2504.8,10.829]
[1746994454744,3.99208725,2505.0,2504.9,8.0]
[1746994454943,3.99192669,2505.1,2504.8,2.829]
[1746994455155,3.99205807,2505.0,2504.8,2.829]
[1746994455534,3.99192699,2505.1,2504.8,2.829]
[1746994455920,3.99217533,2504.9,2504.8,2.829]
[1746994456119,3.99217533,2504.9,2504.8,5.86621]
[1746994456345,3.99217533,2504.9,2504.8,10.829]
[1746994456955,4.81687533,2504.9,2504.8,10.829]
[1746994457874,4.81687533,2504.9,2504.8,8.0]
[1746994458434,3.99233471,2504.8,2504.1,2.83]
[1746994458636,3.99288835,2504.5,2504.1,4.549]
[1746994458860,3.99288835,2504.5,2504.2,8.0]
[1746994459877,4.81777769,2504.4,2504.2,8.0]
[1746994460036,3.99313181,2504.3,2504.2,8.0]
[1746994460372,3.99313181,2504.3,2504.2,7.969]
[1746994460937,0.8247,2504.6,2504.2,9.0489]
[1746994461284,3.99282396,2504.5,2504.2,9.0489]
[1746994461582,3.99282396,2504.5,2504.2,7.969]
[1746994461786,0.8247,2504.6,2504.2,7.969]
[1746994461787,3.99300847,2504.4,2504.2,7.969]
[1746994462175,3.99282424,2504.5,2504.4,3.993008]
[1746994462469,3.99282424,2504.5,2504.2,7.969]
[1746994462972,3.99298585,2504.4,2504.2,7.969]
[1746994463171,3.99329127,2504.2,2504.1,10.83]
[1746994463380,3.99329127,2504.2,2504.1,2.83]
[1746994463536,3.99388494,2503.9,2503.6,2.82]
[1746994463874,3.99388494,2503.9,2503.7,8.0]
[1746994465137,4.81808897,2504.2,2503.7,8.0]
[1746994465850,3.99368405,2504.0,2503.7,8.0]
[1746994466052,3.99379099,2503.9,2503.7,8.0]
[1746994466971,0.8247,2504.2,2503.7,8.0]
[1746994467171,3.99371232,2504.0,2503.7,8.0]
[1746994468687,3.99381093,2503.9,2503.7,8.0]
[1746994468887,3.99392922,2503.8,2503.7,8.0]
[1746994469251,4.76902922,2503.8,2503.7,8.0]
[1746994473154,0.7751,2503.8,2503.1,0.05]
[1746994473358,3.99373815,2504.0,2503.3,8.0]
[1746994473586,3.99377907,2503.9,2503.5,8.0]
[1746994473795,3.99377907,2503.9,2503.2,1.319]
[1746994475656,3.99366129,2504.0,2503.2,1.319]
[1746994476559,3.99393521,2503.8,2503.2,1.319]
[1746994477710,3.99393521,2503.8,2503.3,2.815]
[1746994477995,3.99393521,2503.8,2503.3,3.2334]
[1746994478199,3.99409842,2503.7,2503.3,3.2334]
[1746994478407,4.76855671,2504.1,2503.3,3.2334]
[1746994478703,3.99409787,2503.7,2503.3,3.2334]
[1746994479003,3.99409787,2503.7,2503.4,0.45524]
[1746994480514,3.99398857,2503.8,2503.4,0.45524]
[1746994481835,3.99387419,2503.9,2503.4,0.45524]
[1746994482017,3.99407961,2503.8,2503.4,0.45524]
[1746994483280,3.9938911,2503.9,2503.8,11.994079]
[1746994483614,4.72918705,2504.5,2503.8,11.994079]
[1746994483615,0.7603,2504.5,2503.8,1.1994079]
[1746994483986,3.99372285,2504.0,2503.8,1.1994079]
[1746994484186,3.99307734,2504.4,2503.7,8.0]
[1746994484511,0.7603,2504.5,2503.7,8.0]
[1746994484714,3.99352588,2504.1,2503.7,8.0]
[1746994485019,0.7603,2504.4,2503.4,9.21494]
[1746994485316,3.99393842,2503.8,2503.4,12.03594]
[1746994485508,3.99393842,2503.8,2503.5,1.245434]
[1746994485708,3.99384779,2503.9,2503.5,1.245434]
[1746994486724,0.7603,2504.0,2503.4,11.5807]
[1746994486886,3.99418281,2503.7,2503.4,11.5807]
[1746994487083,3.99419434,2503.7,2503.4,11.5807]
[1746994487288,3.99419434,2503.7,2503.4,10.821]
[1746994488212,3.99398674,2503.8,2503.4,10.821]
[1746994489836,0.7607,2504.5,2504.0,8.747935]
[1746994490038,0.7607,2504.5,2504.1,8.0]
[1746994490039,4.75353609,2504.5,2504.1,8.0]
[1746994490323,4.75302281,2504.9,2504.3,8.0]
[1746994490518,3.99263857,2504.7,2504.1,8.0]
[1746994491341,0.7607,2504.9,2504.2,0.7919]
[1746994491629,3.99227559,2504.9,2504.3,0.87919]
[1746994491986,3.99242063,2504.8,2504.3,0.87919]
[1746994493425,3.99252459,2504.7,2504.2,0.7919]
[1746994493643,0.7749,2504.8,2504.0,8.8267]
[1746994493928,3.99265351,2504.6,2504.0,8.8267]
[1746994494420,3.99285341,2504.5,2504.0,8.8267]
[1746994494835,3.99305735,2504.4,2504.0,8.8267]
[1746994495033,3.99302451,2504.4,2504.0,8.8267]
[1746994497530,3.99319351,2504.3,2504.0,8.8267]
[1746994497733,3.99319351,2504.3,2504.0,8.0]
[1746994499727,3.99329921,2504.2,2504.0,8.0]
[1746994499930,3.99370003,2504.0,2503.6,0.7558]
[1746994500136,3.99352753,2504.1,2503.6,3.5648]
[1746994500331,3.99364299,2504.0,2503.7,8.0]
[1746994501942,0.8194,2503.9,2503.5,8.0]
[1746994502145,0.8194,2503.9,2503.6,1.0809]
[1746994502444,3.99367957,2504.0,2503.7,0.7558]
[1746994503344,0.8194,2504.3,2503.7,0.7558]
[1746994503543,3.99330858,2504.2,2503.8,0.03993634]
[1746994503847,0.8194,2504.3,2503.7,0.7558]
[1746994504028,0.8194,2504.3,2503.7,1.63138]
[1746994505044,3.99345395,2504.1,2503.7,1.63138]
[1746994505232,3.99336627,2504.2,2503.7,1.63138]
[1746994505603,3.99321797,2504.3,2503.7,1.63138]
[1746994505834,0.7984,2504.5,2503.7,1.63138]
[1746994505835,3.99363806,2504.0,2503.7,1.63138]
[1746994506131,3.99363806,2504.0,2503.7,0.7558]
[1746994506462,3.99420501,2503.7,2503.4,8.0]
[1746994508340,3.99386291,2503.9,2503.4,8.0]
[1746994508546,3.99392922,2503.8,2503.4,8.0]
[1746994510670,0.7984,2504.1,2503.1,2.854]
[1746994510671,3.9946278,2503.4,2503.1,0.05]
[1746994511216,3.9946278,2503.4,2503.1,1.48498915]
[1746994511421,4.76296675,2503.7,2503.1,1.48498915]
[1746994511669,3.99438713,2503.6,2503.1,1.48498915]
[1746994512939,0.7688,2503.7,2503.1,1.48498915]
[1746994513148,1.96218003,2504.0,2503.3,1.3373]
[1746994513374,3.99249411,2504.7,2503.7,0.7873]
[1746994513560,0.7688,2505.1,2504.1,0.7873]
[1746994513885,0.7688,2505.1,2504.3,8.0]
[1746994514209,3.99244871,2504.8,2504.3,8.0]
[1746994514674,3.9925012,2504.7,2504.3,8.0]
[1746994514846,3.9925012,2504.7,2504.4,1.0809]
[1746994515246,0.7688,2505.1,2504.4,1.0809]
[1746994515247,3.99226315,2504.9,2504.4,1.0809]
[1746994515453,3.99201596,2505.0,2504.4,1.0809]
[1746994515454,3.99237287,2504.8,2504.4,1.0809]
[1746994515641,3.99270437,2504.6,2504.3,8.0]
[1746994516172,3.992547,2504.7,2504.3,8.0]
[1746994516373,0.7688,2505.1,2504.3,8.0]
[1746994516558,4.7606845,2505.1,2504.3,8.0]
[1746994516730,3.99261644,2504.7,2504.3,8.0]
[1746994516929,3.99261644,2504.7,2504.3,9.15963]
[1746994518384,0.7897,2504.7,2504.3,9.15963]
[1746994518583,3.9929346,2504.5,2504.3,9.15963]
[1746994518889,3.99271567,2504.6,2504.5,8.0]
[1746994526284,3.99225966,2504.9,2504.6,11.992715]
[1746994526483,3.99225966,2504.9,2504.4,0.7686]
[1746994526484,3.99234616,2504.8,2504.4,0.7686]
[1746994528804,0.752,2505.0,2504.2,0.7686]
[1746994529022,3.99370618,2504.0,2503.8,0.7686]
[1746994529177,3.9935368,2504.1,2503.8,0.7686]
[1746994529371,3.9935368,2504.1,2503.8,1.12526]
[1746994529572,3.99340694,2504.2,2503.8,1.12526]
[1746994531180,3.99307691,2504.4,2503.8,1.12526]
[1746994531513,3.99371713,2504.0,2503.8,0.35666]
[1746994531713,3.99397165,2503.8,2503.6,2.798]
[1746994531900,3.99397165,2503.8,2503.7,8.0]
[1746994532413,3.99397165,2503.8,2503.6,2.798]
[1746994532792,3.99397165,2503.8,2503.7,8.0]
[1746994537238,3.99364666,2504.0,2503.7,8.0]
[1746994537444,3.99382039,2503.9,2503.7,8.0]
[1746994538231,3.99335737,2504.2,2503.7,8.0]
[1746994538432,3.99336617,2504.2,2503.7,9.9053]
[1746994539902,2.793,2504.6,2503.8,0.0399385]
[1746994540149,3.99291476,2504.5,2504.1,0.8294]
[1746994540363,3.99281933,2504.5,2504.1,0.8294]
[1746994540648,3.99253777,2504.7,2504.1,0.8294]
[1746994541433,3.99268812,2504.6,2504.1,0.8294]
[1746994541747,3.99288881,2504.5,2504.1,0.8294]
[1746994541950,3.99288881,2504.5,2504.3,8.0]
[1746994542451,3.99288881,2504.5,2504.1,0.8294]
[1746994542624,3.99356783,2504.1,2503.9,0.8294]
[1746994542836,3.99356783,2504.1,2503.9,2.09952]
[1746994544333,3.99336358,2504.2,2503.9,2.09952]
[1746994546876,0.8269,2504.8,2503.9,2.09952]
[1746994547046,3.99249411,2504.7,2504.0,8.03993034]
[1746994547247,4.81935762,2504.8,2504.0,0.03993034]
[1746994547449,3.99267415,2504.6,2504.0,1.01394503]
[1746994548474,3.9928184,2504.5,2504.0,1.01394503]
[1746994548779,3.99271967,2504.6,2504.1,0.8323]
[1746994549111,3.99283704,2504.5,2504.3,8.0]
[1746994551071,0.8259,2505.4,2504.4,0.8323]
[1746994551272,4.81739205,2505.4,2504.7,0.8323]
[1746994551464,3.99188028,2505.1,2504.9,8.0]
[1746994551658,3.99201596,2505.0,2504.9,8.0]
[1746994556789,4.76811596,2505.0,2504.9,8.0]
[1746994558908,3.99243253,2504.8,2504.4,8.0]
[1746994559125,3.99243253,2504.8,2504.5,0.8]
[1746994559625,3.99223969,2504.9,2504.5,0.8]
[1746994560120,3.99245515,2504.8,2504.5,0.8]
[1746994560886,3.99229292,2504.9,2504.5,0.8]
[1746994561209,3.99245074,2504.8,2504.5,0.8]
[1746994561812,3.99251685,2504.7,2504.5,0.8]
[1746994562013,3.99265351,2504.6,2504.5,0.8]
[1746994562223,3.99256922,2504.7,2504.5,0.8]
[1746994563297,3.99256922,2504.7,2504.4,8.0]
[1746994563492,3.99239118,2504.8,2504.4,8.0]
[1746994563493,0.7761,2505.0,2504.4,8.0]
[1746994563839,3.99231397,2504.9,2504.4,8.0]
[1746994564138,3.99235627,2504.8,2504.4,8.0]
[1746994564632,3.99209985,2505.0,2504.9,8.0]
[1746994564835,3.99209985,2505.0,2504.5,0.8239]
[1746994565049,3.99217541,2504.9,2504.6,0.88239]
[1746994565197,3.99217541,2504.9,2504.8,8.0]
[1746994565401,3.99217541,2504.9,2504.8,2.965701]
[1746994565602,3.99217541,2504.9,2504.8,8.0]
[1746994565803,2.68883021,2504.9,2504.1,0.8239]
[1746994565999,3.99338231,2504.2,2503.9,3.6109]
[1746994566215,6.68168142,2504.5,2503.9,2.787]
[1746994566439,3.99361022,2504.0,2503.9,2.787]
[1746994566843,3.99361022,2504.0,2503.7,8.0]
[1746994566844,3.9940126,2503.8,2503.7,8.0]
[1746994567017,3.9940126,2503.8,2503.7,2.59769]
[1746994567214,3.9940126,2503.8,2503.7,10.59769]
[1746994568465,3.99385213,2503.9,2503.8,8.0]
[1746994569222,3.99385213,2503.9,2503.7,2.59769]
[1746994569428,3.99385213,2503.9,2503.8,8.0]
[1746994569657,3.99472696,2503.3,2503.0,0.8235]
[1746994569851,4.78827742,2503.7,2503.0,0.8235]
[1746994569852,3.99437419,2503.6,2503.0,0.8235]
[1746994570058,5.95602806,2503.9,2503.2,0.8235]
[1746994570258,3.99401949,2503.8,2503.2,0.8235]
[1746994570454,3.99401949,2503.8,2503.2,8.8235]
[1746994570656,4.78740766,2504.2,2503.4,0.8235]
[1746994570857,3.99345074,2504.1,2503.4,3.6105]
[1746994571073,3.9936541,2504.0,2503.5,8.0]
[1746994571568,3.99383364,2503.9,2503.5,8.0]
[1746994572875,3.99392922,2503.8,2503.5,8.0]
[1746994573072,4.78740907,2504.2,2503.5,8.0]
[1746994573242,3.99405066,2503.8,2503.5,8.0]
[1746994573464,3.99383888,2503.9,2503.5,9.277595]
[1746994573775,0.7941,2504.2,2503.5,9.277595]
[1746994574279,3.9936673,2504.0,2503.5,9.277595]
[1746994574475,3.99350316,2504.1,2503.6,0.76]
[1746994574775,3.99365059,2504.0,2503.5,9.3175355]
[1746994574944,2.78168003,2504.4,2503.7,8.0]
[1746994575146,3.9938028,2503.9,2503.7,8.0]
[1746994575688,3.9938028,2503.9,2503.6,1.28645355]
[1746994575853,3.9938028,2503.9,2503.5,0.03993927]
[1746994576058,3.99366197,2504.0,2503.7,8.0]
[1746994576771,3.99329127,2504.2,2503.7,8.0]
[1746994577141,3.99388393,2503.9,2503.7,8.0]
[1746994577442,3.99360388,2504.1,2503.7,8.0]
[1746994577643,3.99360388,2504.1,2503.7,8.54640896]
[1746994577841,3.99364556,2504.0,2503.7,8.54640896]
[1746994578353,0.8195,2504.4,2503.7,8.54640896]
[1746994578553,0.7569,2503.8,2503.0,2.787]
[1746994578760,3.99408874,2503.7,2503.0,3.5531]
[1746994578938,2.71908003,2503.8,2503.0,0.7661]
[1746994579143,4.75178654,2503.2,2502.3,2.787]
[1746994579366,4.75178654,2503.2,2502.5,8.0]
[1746994580748,4.75178654,2503.2,2502.4,15.1331]
[1746994581058,4.75178654,2503.2,2502.5,8.0]
[1746994584379,6.77308874,2503.7,2502.5,8.0]
[1746994584380,0.45773385,2504.6,2503.3,0.55]
[1746994584685,4.7921136,2505.4,2504.1,0.8113]
[1746994584843,0.8121,2505.0,2504.3,8.0]
[1746994585281,3.99232553,2504.9,2504.3,8.0]
[1746994585444,0.8121,2505.0,2504.3,8.0]
[1746994585651,3.99295838,2504.5,2504.3,2.777]
[1746994586282,3.99285642,2504.5,2504.1,2.777]
[1746994588452,3.99285642,2504.5,2504.0,8.0]
[1746994588790,3.99372549,2504.0,2503.8,2.776]
[1746994588957,3.99349476,2504.1,2503.9,8.0]
[1746994589156,3.99335555,2504.2,2503.9,8.0]
[1746994589348,3.99315196,2504.3,2503.5,8.7991]
[1746994589555,3.99375956,2504.0,2503.7,8.0]
[1746994589866,3.99334813,2504.2,2503.7,8.0]